fUSD/lending_fUSD_20260602
["ID","MTS","AMOUNT","RATE_DAILY","PERIOD"]
[423729571,1780342232000,-300.0,0.00012472,2]
[423729579,1780342232000,-697.15,0.00012621,2]
[423729577,1780342232000,-673.0,0.00012546,2]
[423729589,1780342232000,-8153.8,0.00012893,2]
[423729591,1780342232000,-1698.41702564,0.00012893,2]
[423729586,1780342232000,-3149.78129901,0.00012893,2]
[423729587,1780342232000,-1008.6342,0.00012893,2]
[423729585,1780342232000,-4903.29124838,0.00012893,2]
[423729590,1780342232000,-694.21450099,0.00012893,2]
[423729578,1780342232000,-150.0,0.00012547,2]
[423729580,1780342232000,-1710.62756219,0.00012655,2]
[423729583,1780342232000,-281.57,0.00012805,2]
[423729582,1780342232000,-1206.05,0.00012757,2]
[423729584,1780342232000,-96.69875162,0.00012893,2]
[423729581,1780342232000,-289.37243781,0.00012655,2]
[423729626,1780342240000,-424.0,0.00013205,2]
[423729639,1780342240000,-150.0,0.00013488,2]
[423729631,1780342240000,-150.99,0.00013418,2]
[423729629,1780342240000,-150.0,0.00013417,2]
[423729628,1780342240000,-186.424,0.00013417,2]
[423729622,1780342240000,-9999.99,0.00012893,2]
[423729623,1780342240000,-3512.31211197,0.0001305,2]
[423729624,1780342240000,-281.57,0.00013118,2]
[423729627,1780342240000,-3277.492,0.00013417,2]
[423729598,1780342240000,-261.04973647,0.00012892,2]
[423729621,1780342240000,-1458.70703558,0.00012893,2]
[423729620,1780342240000,-657.05156622,0.00012893,2]
[423729601,1780342240000,-6185.81437256,0.00012893,2]
[423729600,1780342240000,-403.92215322,0.00012892,2]
[423729599,1780342240000,-238.95026353,0.00012892,2]
[423729597,1780342240000,-500.0,0.00012892,2]
[423729596,1780342240000,-150.0,0.00011674,2]
[423729632,1780342240000,-281.57,0.0001343,2]
[423729625,1780342240000,-487.91,0.00013179,2]
[423729630,1780342240000,-9999.99,0.00013418,2]
[423729648,1780342240000,-18487.0,0.00013608,2]
[423729634,1780342240000,-150.0,0.00013488,2]
[423729633,1780342240000,-204.49843592,0.00013445,2]
[423729654,1780342240000,-500.0,0.0001364,2]
[423729653,1780342240000,-444.92971881,0.0001364,2]
[423729650,1780342240000,-500.0,0.0001364,2]
[423729651,1780342240000,-500.0,0.0001364,2]
[423729647,1780342240000,-280.27975831,0.000136,2]
[423729642,1780342240000,-14220.7328,0.00013551,2]
[423729644,1780342240000,-1410.84119775,0.00013551,2]
[423729645,1780342240000,-8845.24020426,0.00013551,2]
[423729652,1780342240000,-211.17879688,0.0001364,2]
[423729646,1780342240000,-14387.9592,0.00013599,2]
[423729643,1780342240000,-2500.0,0.00013551,2]
[423729641,1780342240000,-2000.0,0.00013551,2]
[423729636,1780342240000,-150.0,0.00013488,2]
[423729635,1780342240000,-150.0,0.00013488,2]
[423729640,1780342240000,-150.0,0.00013488,2]
[423729637,1780342240000,-150.0,0.00013488,2]
[423729649,1780342240000,-412.57814766,0.0001364,2]
[423729638,1780342240000,-150.0,0.00013488,2]
[423729707,1780342241000,-151.0,0.00013699,2]
[423729708,1780342241000,-151.0,0.00013699,2]
[423729706,1780342241000,-151.0,0.00013699,2]
[423729714,1780342241000,-151.0,0.00013699,2]
[423729701,1780342241000,-151.0,0.00013699,2]
[423729713,1780342241000,-151.0,0.00013699,2]
[423729703,1780342241000,-151.0,0.00013699,2]
[423729699,1780342241000,-151.0,0.00013699,2]
[423729705,1780342241000,-151.0,0.00013699,2]
[423729686,1780342241000,-500.0,0.00013698,2]
[423729715,1780342241000,-151.0,0.00013699,2]
[423729709,1780342241000,-151.0,0.00013699,2]
[423729724,1780342241000,-151.0,0.00013699,2]
[423729710,1780342241000,-151.0,0.00013699,2]
[423729712,1780342241000,-151.0,0.00013699,2]
[423729717,1780342241000,-151.0,0.00013699,2]
[423729727,1780342241000,-151.0,0.00013699,2]
[423729728,1780342241000,-151.0,0.00013699,2]
[423729716,1780342241000,-151.0,0.00013699,2]
[423729719,1780342241000,-151.0,0.00013699,2]
[423729729,1780342241000,-151.0,0.00013699,2]
[423729682,1780342241000,-382.83023992,0.00013698,2]
[423729726,1780342241000,-151.0,0.00013699,2]
[423729721,1780342241000,-151.0,0.00013699,2]
[423729725,1780342241000,-151.0,0.00013699,2]
[423729718,1780342241000,-151.0,0.00013699,2]
[423729711,1780342241000,-151.0,0.00013699,2]
[423729697,1780342241000,-151.0,0.00013699,2]
[423729675,1780342241000,-500.0,0.00013698,2]
[423729678,1780342241000,-500.0,0.00013698,2]
[423729720,1780342241000,-151.0,0.00013699,2]
[423729655,1780342241000,-500.0,0.0001364,2]
[423729656,1780342241000,-500.0,0.0001364,2]
[423729657,1780342241000,-500.0,0.0001364,2]
[423729658,1780342241000,-427.78099053,0.0001364,2]
[423729661,1780342241000,-151.0,0.00013648,2]
[423729662,1780342241000,-151.0,0.00013648,2]
[423729663,1780342241000,-151.0,0.00013648,2]
[423729664,1780342241000,-151.0,0.00013648,2]
[423729660,1780342241000,-22220.97,0.00013641,2]
[423729659,1780342241000,-22220.97,0.00013641,2]
[423729665,1780342241000,-524.627967,0.00013651,2]
[423729667,1780342241000,-125878.6735467,0.00013651,2]
[423729666,1780342241000,-15939.4575116,0.00013651,2]
[423729671,1780342241000,-892.21,0.00013698,2]
[423729668,1780342241000,-420353.3484686,0.00013651,2]
[423729669,1780342241000,-77212.3593531,0.00013651,2]
[423729670,1780342241000,-420.0,0.00013685,2]
[423729672,1780342241000,-500.0,0.00013698,2]
[423729674,1780342241000,-616.82,0.00013698,2]
[423729673,1780342241000,-500.0,0.00013698,2]
[423729676,1780342241000,-291.67528041,0.00013698,2]
[423729677,1780342241000,-500.0,0.00013698,2]
[423729690,1780342241000,-200.0,0.00013699,2]
[423729689,1780342241000,-250.0,0.00013699,2]
[423729692,1780342241000,-166.66,0.00013699,2]
[423729680,1780342241000,-500.0,0.00013698,2]
[423729695,1780342241000,-151.0,0.00013699,2]
[423729723,1780342241000,-151.0,0.00013699,2]
[423729684,1780342241000,-3916.58,0.00013698,2]
[423729730,1780342241000,-151.0,0.00013699,2]
[423729762,1780342241000,-500.0,0.00013699,2]
[423729752,1780342241000,-500.0,0.00013699,2]
[423729765,1780342241000,-500.0,0.00013699,2]
[423729764,1780342241000,-500.0,0.00013699,2]
[423729768,1780342241000,-3229.5251,0.00013701,2]
[423729767,1780342241000,-1410.84119766,0.00013701,2]
[423729766,1780342241000,-500.0,0.00013699,2]
[423729772,1780342241000,-300.0,0.00013717,2]
[423729769,1780342241000,-150.0,0.00013702,2]
[423729775,1780342241000,-300.0,0.00013717,2]
[423729771,1780342241000,-300.0,0.00013717,2]
[423729776,1780342241000,-2500.0,0.00013717,2]
[423729774,1780342241000,-300.0,0.00013717,2]
[423729773,1780342241000,-300.0,0.00013717,2]
[423729778,1780342241000,-2500.0,0.00013717,2]
[423729788,1780342241000,-8845.24020419,0.00013744,2]
[423729777,1780342241000,-2500.0,0.00013717,2]
[423729789,1780342241000,-653.71,0.00013787,2]
[423729783,1780342241000,-200.0,0.00013717,2]
[423729781,1780342241000,-200.0,0.00013717,2]
[423729786,1780342241000,-1680.0,0.00013719,2]
[423729779,1780342241000,-2500.0,0.00013717,2]
[423729780,1780342241000,-2500.0,0.00013717,2]
[423729782,1780342241000,-200.0,0.00013717,2]
[423729784,1780342241000,-200.0,0.00013717,2]
[423729785,1780342241000,-200.0,0.00013717,2]
[423729731,1780342241000,-151.0,0.00013699,2]
[423729759,1780342241000,-500.0,0.00013699,2]
[423729756,1780342241000,-500.0,0.00013699,2]
[423729770,1780342241000,-308.12746891,0.00013702,2]
[423729763,1780342241000,-500.0,0.00013699,2]
[423729758,1780342241000,-500.0,0.00013699,2]
[423729732,1780342241000,-151.0,0.00013699,2]
[423729733,1780342241000,-151.0,0.00013699,2]
[423729734,1780342241000,-151.0,0.00013699,2]
[423729737,1780342241000,-151.0,0.00013699,2]
[423729736,1780342241000,-151.0,0.00013699,2]
[423729735,1780342241000,-151.0,0.00013699,2]
[423729738,1780342241000,-151.0,0.00013699,2]
[423729739,1780342241000,-151.0,0.00013699,2]
[423729743,1780342241000,-151.0,0.00013699,2]
[423729742,1780342241000,-151.0,0.00013699,2]
[423729744,1780342241000,-279.960539,0.00013699,2]
[423729741,1780342241000,-151.0,0.00013699,2]
[423729745,1780342241000,-2500.0,0.00013699,2]
[423729740,1780342241000,-151.0,0.00013699,2]
[423729761,1780342241000,-500.0,0.00013699,2]
[423729747,1780342241000,-500.0,0.00013699,2]
[423729754,1780342241000,-500.0,0.00013699,2]
[423729787,1780342241000,-281.57,0.00013742,2]
[423729760,1780342241000,-400.00000001,0.00013699,2]
[423729757,1780342241000,-500.0,0.00013699,2]
[423729753,1780342241000,-500.0,0.00013699,2]
[423729755,1780342241000,-500.0,0.00013699,2]
[423729750,1780342241000,-500.0,0.00013699,2]
[423729746,1780342241000,-1500.0,0.00013699,2]
[423729748,1780342241000,-500.0,0.00013699,2]
[423729749,1780342241000,-500.0,0.00013699,2]
[423729751,1780342241000,-500.0,0.00013699,2]
[423729839,1780342242000,-586.0,0.00013788,2]
[423729835,1780342242000,-150.0,0.00013788,2]
[423729833,1780342242000,-150.0,0.00013788,2]
[423729831,1780342242000,-150.0,0.00013788,2]
[423729830,1780342242000,-553.88816632,0.00013788,2]
[423729828,1780342242000,-200.0,0.00013788,2]
[423729823,1780342242000,-500.0,0.00013788,2]
[423729838,1780342242000,-500.0,0.00013788,2]
[423729822,1780342242000,-500.0,0.00013788,2]
[423729824,1780342242000,-179.15137862,0.00013788,2]
[423729818,1780342242000,-500.0,0.00013788,2]
[423729832,1780342242000,-150.0,0.00013788,2]
[423729827,1780342242000,-500.0,0.00013788,2]
[423729836,1780342242000,-250.0,0.00013788,2]
[423729848,1780342242000,-200.0,0.00013788,2]
[423729834,1780342242000,-150.0,0.00013788,2]
[423729837,1780342242000,-500.0,0.00013788,2]
[423729842,1780342242000,-500.0,0.00013788,2]
[423729840,1780342242000,-500.0,0.00013788,2]
[423729843,1780342242000,-500.0,0.00013788,2]
[423729841,1780342242000,-500.0,0.00013788,2]
[423729849,1780342242000,-500.0,0.00013788,2]
[423729844,1780342242000,-150.0,0.00013788,2]
[423729852,1780342242000,-500.0,0.00013788,2]
[423729845,1780342242000,-500.0,0.00013788,2]
[423729851,1780342242000,-320.0,0.00013788,2]
[423729850,1780342242000,-500.0,0.00013788,2]
[423729815,1780342242000,-500.0,0.00013788,2]
[423729829,1780342242000,-500.0,0.00013788,2]
[423729821,1780342242000,-500.0,0.00013788,2]
[423729794,1780342242000,-500.0,0.00013787,2]
[423729825,1780342242000,-150.0,0.00013788,2]
[423729790,1780342242000,-500.0,0.00013787,2]
[423729792,1780342242000,-500.0,0.00013787,2]
[423729847,1780342242000,-500.0,0.00013788,2]
[423729791,1780342242000,-500.0,0.00013787,2]
[423729796,1780342242000,-577.35,0.00013787,2]
[423729801,1780342242000,-150.0,0.00013788,2]
[423729793,1780342242000,-500.0,0.00013787,2]
[423729795,1780342242000,-502.76,0.00013787,2]
[423729800,1780342242000,-150.0,0.00013787,2]
[423729797,1780342242000,-500.0,0.00013787,2]
[423729798,1780342242000,-2195.89,0.00013787,2]
[423729799,1780342242000,-500.0,0.00013787,2]
[423729803,1780342242000,-150.0,0.00013788,2]
[423729813,1780342242000,-500.0,0.00013788,2]
[423729802,1780342242000,-150.0,0.00013788,2]
[423729804,1780342242000,-150.0,0.00013788,2]
[423729805,1780342242000,-150.0,0.00013788,2]
[423729806,1780342242000,-296.0,0.00013788,2]
[423729807,1780342242000,-150.0,0.00013788,2]
[423729809,1780342242000,-150.0,0.00013788,2]
[423729812,1780342242000,-500.0,0.00013788,2]
[423729810,1780342242000,-289.0,0.00013788,2]
[423729811,1780342242000,-500.0,0.00013788,2]
[423729808,1780342242000,-250.0,0.00013788,2]
[423729817,1780342242000,-500.0,0.00013788,2]
[423729814,1780342242000,-500.0,0.00013788,2]
[423729816,1780342242000,-500.0,0.00013788,2]
[423729826,1780342242000,-150.0,0.00013788,2]
[423729819,1780342242000,-500.0,0.00013788,2]
[423729820,1780342242000,-500.0,0.00013788,2]
[423729846,1780342242000,-150.0,0.00013788,2]
[423729855,1780342242000,-500.0,0.00013788,2]
[423729864,1780342242000,-500.0,0.00013788,2]
[423729886,1780342242000,-150.0,0.00013788,2]
[423729888,1780342242000,-833.0,0.00013788,2]
[423729887,1780342242000,-200.0,0.00013788,2]
[423729894,1780342242000,-150.0,0.00013788,2]
[423729892,1780342242000,-500.0,0.00013788,2]
[423729895,1780342242000,-150.0,0.00013788,2]
[423729893,1780342242000,-833.0,0.00013788,2]
[423729896,1780342242000,-150.0,0.00013788,2]
[423729897,1780342242000,-150.0,0.00013788,2]
[423729903,1780342242000,-833.0,0.00013788,2]
[423729904,1780342242000,-150.0,0.00013788,2]
[423729900,1780342242000,-150.0,0.00013788,2]
[423729899,1780342242000,-150.0,0.00013788,2]
[423729898,1780342242000,-150.0,0.00013788,2]
[423729902,1780342242000,-150.0,0.00013788,2]
[423729901,1780342242000,-250.0,0.00013788,2]
[423729906,1780342242000,-250.0,0.00013788,2]
[423729917,1780342242000,-150.0,0.00013788,2]
[423729916,1780342242000,-250.0,0.00013788,2]
[423729910,1780342242000,-838.45177235,0.00013788,2]
[423729905,1780342242000,-150.0,0.00013788,2]
[423729907,1780342242000,-833.0,0.00013788,2]
[423729909,1780342242000,-833.0,0.00013788,2]
[423729908,1780342242000,-833.0,0.00013788,2]
[423729854,1780342242000,-500.0,0.00013788,2]
[423729912,1780342242000,-150.0,0.00013788,2]
[423729911,1780342242000,-150.0,0.00013788,2]
[423729914,1780342242000,-150.0,0.00013788,2]
[423729915,1780342242000,-150.0,0.00013788,2]
[423729885,1780342242000,-833.0,0.00013788,2]
[423729891,1780342242000,-500.0,0.00013788,2]
[423729913,1780342242000,-150.0,0.00013788,2]
[423729881,1780342242000,-833.0,0.00013788,2]
[423729883,1780342242000,-833.0,0.00013788,2]
[423729853,1780342242000,-500.0,0.00013788,2]
[423729866,1780342242000,-500.0,0.00013788,2]
[423729856,1780342242000,-500.0,0.00013788,2]
[423729861,1780342242000,-833.0,0.00013788,2]
[423729857,1780342242000,-500.0,0.00013788,2]
[423729862,1780342242000,-833.0,0.00013788,2]
[423729859,1780342242000,-833.0,0.00013788,2]
[423729863,1780342242000,-833.0,0.00013788,2]
[423729858,1780342242000,-198.69586385,0.00013788,2]
[423729860,1780342242000,-833.0,0.00013788,2]
[423729878,1780342242000,-833.0,0.00013788,2]
[423729868,1780342242000,-500.0,0.00013788,2]
[423729879,1780342242000,-500.0,0.00013788,2]
[423729865,1780342242000,-833.0,0.00013788,2]
[423729869,1780342242000,-833.0,0.00013788,2]
[423729867,1780342242000,-833.0,0.00013788,2]
[423729882,1780342242000,-150.0,0.00013788,2]
[423729880,1780342242000,-833.0,0.00013788,2]
[423729890,1780342242000,-500.0,0.00013788,2]
[423729877,1780342242000,-500.0,0.00013788,2]
[423729874,1780342242000,-500.0,0.00013788,2]
[423729884,1780342242000,-833.0,0.00013788,2]
[423729875,1780342242000,-833.0,0.00013788,2]
[423729870,1780342242000,-500.0,0.00013788,2]
[423729872,1780342242000,-833.0,0.00013788,2]
[423729889,1780342242000,-833.0,0.00013788,2]
[423729876,1780342242000,-150.0,0.00013788,2]
[423729873,1780342242000,-500.0,0.00013788,2]
[423729871,1780342242000,-500.0,0.00013788,2]
[423729948,1780342243000,-697.15,0.00014199,2]
[423729954,1780342243000,-500.0,0.00014321,2]
[423729947,1780342243000,-649.56,0.00014156,2]
[423729956,1780342243000,-500.0,0.00014322,2]
[423729951,1780342243000,-166.66,0.00014247,2]
[423729957,1780342243000,-150.0,0.00014344,2]
[423729953,1780342243000,-310.962461,0.00014307,2]
[423729949,1780342243000,-2000.0,0.00014236,2]
[423729970,1780342243000,-741.83,0.00014497,2]
[423729950,1780342243000,-500.0,0.00014247,2]
[423729955,1780342243000,-8845.24020419,0.00014322,2]
[423729952,1780342243000,-1410.84119766,0.000143,2]
[423729963,1780342243000,-1410.84119766,0.0001445,2]
[423729969,1780342243000,-2442.3,0.00014497,2]
[423729958,1780342243000,-350.0,0.00014357,2]
[423729960,1780342243000,-150.0,0.00014387,2]
[423729964,1780342243000,-292.16608246,0.00014465,2]
[423729968,1780342243000,-18487.0,0.00014497,2]
[423729967,1780342243000,-151.0,0.00014492,2]
[423729961,1780342243000,-500.94201781,0.00014408,2]
[423729966,1780342243000,-2212.70631851,0.00014465,2]
[423729965,1780342243000,-2613.56481705,0.00014465,2]
[423729962,1780342243000,-350.0,0.00014414,2]
[423729946,1780342243000,-1410.84119766,0.00014151,2]
[423729959,1780342243000,-166.66,0.00014384,2]
[423729945,1780342243000,-150.0,0.0001413,2]
[423729928,1780342243000,-151.0,0.0001399,2]
[423729941,1780342243000,-150.0,0.00014087,2]
[423729918,1780342243000,-174.37069545,0.00013788,2]
[423729919,1780342243000,-166.66,0.00013836,2]
[423729921,1780342243000,-150.0,0.00013916,2]
[423729922,1780342243000,-8845.24020419,0.00013936,2]
[423729926,1780342243000,-151.0,0.0001399,2]
[423729923,1780342243000,-166.66,0.00013973,2]
[423729920,1780342243000,-1410.84119766,0.00013851,2]
[423729925,1780342243000,-151.0,0.0001399,2]
[423729924,1780342243000,-40182.55971291,0.0001399,2]
[423729927,1780342243000,-151.0,0.0001399,2]
[423729929,1780342243000,-151.0,0.0001399,2]
[423729942,1780342243000,-166.66,0.0001411,2]
[423729930,1780342243000,-250.0,0.00014,2]
[423729932,1780342243000,-500.0,0.00014,2]
[423729933,1780342243000,-500.0,0.00014,2]
[423729934,1780342243000,-500.0,0.00014,2]
[423729936,1780342243000,-1500.0,0.00014,2]
[423729935,1780342243000,-526.88,0.00014,2]
[423729940,1780342243000,-204.49843592,0.00014067,2]
[423729943,1780342243000,-154.800204,0.00014126,2]
[423729944,1780342243000,-8845.24020419,0.00014129,2]
[423729937,1780342243000,-1410.84119766,0.00014001,2]
[423729939,1780342243000,-500.0,0.00014034,2]
[423729938,1780342243000,-151.0,0.00014001,2]
[423729931,1780342243000,-500.0,0.00014,2]
[423729981,1780342243000,-892.21,0.00014598,2]
[423729990,1780342243000,-507.7240582,0.00014599,2]
[423729973,1780342243000,-255.0,0.0001453,2]
[423730001,1780342243000,-163.43660373,0.00014599,2]
[423730000,1780342243000,-500.0,0.00014599,2]
[423730017,1780342243000,-500.0,0.00014599,2]
[423730007,1780342243000,-649.56,0.00014599,2]
[423730006,1780342243000,-649.56,0.00014599,2]
[423730009,1780342243000,-500.0,0.00014599,2]
[423730008,1780342243000,-500.0,0.00014599,2]
[423730012,1780342243000,-500.0,0.00014599,2]
[423730011,1780342243000,-500.0,0.00014599,2]
[423730010,1780342243000,-500.0,0.00014599,2]
[423730013,1780342243000,-500.0,0.00014599,2]
[423729999,1780342243000,-500.0,0.00014599,2]
[423730015,1780342243000,-500.0,0.00014599,2]
[423730016,1780342243000,-500.0,0.00014599,2]
[423730018,1780342243000,-500.0,0.00014599,2]
[423730023,1780342243000,-577.35,0.00014599,2]
[423730024,1780342243000,-577.35,0.00014599,2]
[423730022,1780342243000,-502.76,0.00014599,2]
[423730026,1780342243000,-500.0,0.00014599,2]
[423730020,1780342243000,-502.76,0.00014599,2]
[423730027,1780342243000,-2195.89,0.00014599,2]
[423730021,1780342243000,-502.76,0.00014599,2]
[423730019,1780342243000,-500.0,0.00014599,2]
[423730025,1780342243000,-577.35,0.00014599,2]
[423730014,1780342243000,-500.0,0.00014599,2]
[423730003,1780342243000,-500.0,0.00014599,2]
[423729971,1780342243000,-427.33210406,0.000145,2]
[423730002,1780342243000,-500.0,0.00014599,2]
[423729972,1780342243000,-8845.24020419,0.00014515,2]
[423729975,1780342243000,-452.365085,0.0001455,2]
[423729980,1780342243000,-151.0,0.00014597,2]
[423729976,1780342243000,-150.0,0.00014558,2]
[423729978,1780342243000,-427.332104,0.00014567,2]
[423729974,1780342243000,-350.0,0.00014533,2]
[423729979,1780342243000,-151.0,0.00014597,2]
[423730004,1780342243000,-500.0,0.00014599,2]
[423729983,1780342243000,-327.92067223,0.00014598,2]
[423729993,1780342243000,-500.0,0.00014599,2]
[423729982,1780342243000,-500.0,0.00014598,2]
[423729985,1780342243000,-500.0,0.00014598,2]
[423729977,1780342243000,-350.0,0.00014563,2]
[423729987,1780342243000,-500.0,0.00014598,2]
[423729989,1780342243000,-574.57860626,0.00014599,2]
[423729997,1780342243000,-500.0,0.00014599,2]
[423730005,1780342243000,-649.56,0.00014599,2]
[423729996,1780342243000,-653.71,0.00014599,2]
[423729994,1780342243000,-653.71,0.00014599,2]
[423729998,1780342243000,-500.0,0.00014599,2]
[423729988,1780342243000,-500.0,0.00014599,2]
[423729986,1780342243000,-3916.58,0.00014598,2]
[423729992,1780342243000,-500.0,0.00014599,2]
[423729984,1780342243000,-616.82,0.00014598,2]
[423729991,1780342243000,-500.0,0.00014599,2]
[423729995,1780342243000,-653.71,0.00014599,2]
[423730062,1780342244000,-2000.0,0.0001485,2]
[423730060,1780342244000,-10000.0,0.00014849,2]
[423730063,1780342244000,-2000.0,0.0001485,2]
[423730068,1780342244000,-1130.40691877,0.00014877,2]
[423730059,1780342244000,-1130.40691877,0.00014845,2]
[423730064,1780342244000,-500.0,0.00014853,2]
[423730056,1780342244000,-1130.40691877,0.00014833,2]
[423730052,1780342244000,-1130.40691877,0.00014807,2]
[423730053,1780342244000,-1130.40691877,0.0001482,2]
[423730061,1780342244000,-2000.0,0.0001485,2]
[423730070,1780342244000,-200.0,0.00014878,2]
[423730076,1780342244000,-163.0,0.0001488,2]
[423730065,1780342244000,-401.0,0.00014861,2]
[423730066,1780342244000,-1130.40691877,0.00014868,2]
[423730069,1780342244000,-200.0,0.00014877,2]
[423730072,1780342244000,-200.0,0.00014879,2]
[423730073,1780342244000,-200.0,0.00014879,2]
[423730075,1780342244000,-200.0,0.00014879,2]
[423730077,1780342244000,-163.0,0.0001488,2]
[423730071,1780342244000,-1942.0,0.00014879,5]
[423730074,1780342244000,-200.0,0.00014879,2]
[423730079,1780342244000,-351.0,0.00014882,2]
[423730078,1780342244000,-1130.40691877,0.00014881,2]
[423730055,1780342244000,-4796.1743794,0.00014828,2]
[423730067,1780342244000,-1130.40691877,0.00014872,2]
[423730057,1780342244000,-427.332104,0.00014833,2]
[423730041,1780342244000,-427.332104,0.000147,2]
[423730051,1780342244000,-151.0,0.00014805,2]
[423730081,1780342244000,-1130.40691877,0.00014897,2]
[423730028,1780342244000,-2195.89,0.00014599,2]
[423730029,1780342244000,-2195.89,0.00014599,2]
[423730031,1780342244000,-1410.84119766,0.000146,2]
[423730030,1780342244000,-500.0,0.00014599,2]
[423730034,1780342244000,-153.0,0.00014609,2]
[423730032,1780342244000,-1546.0,0.00014609,2]
[423730036,1780342244000,-151.0,0.00014611,2]
[423730035,1780342244000,-154.0,0.00014609,2]
[423730033,1780342244000,-1546.0,0.00014609,2]
[423730038,1780342244000,-150.0,0.00014687,2]
[423730054,1780342244000,-1130.40691877,0.00014826,2]
[423730037,1780342244000,-427.332104,0.00014633,2]
[423730040,1780342244000,-19715.43047871,0.000147,2]
[423730045,1780342244000,-1410.84119766,0.0001475,2]
[423730042,1780342244000,-8845.24020419,0.00014707,2]
[423730043,1780342244000,-394.0,0.0001474,2]
[423730044,1780342244000,-401.0,0.00014744,2]
[423730046,1780342244000,-401.0,0.00014765,2]
[423730048,1780342244000,-150.0,0.00014772,2]
[423730058,1780342244000,-209.31052136,0.0001484,2]
[423730049,1780342244000,-401.0,0.00014774,2]
[423730050,1780342244000,-151.0,0.00014805,2]
[423730047,1780342244000,-427.332104,0.00014767,2]
[423730039,1780342244000,-280.772318,0.00014699,2]
[423730080,1780342244000,-5000.0,0.00014895,2]
[423730093,1780342244000,-1130.40691877,0.00014924,2]
[423730131,1780342244000,-500.0,0.00014995,2]
[423730109,1780342244000,-209.31052136,0.0001499,2]
[423730113,1780342244000,-151.0,0.00014993,2]
[423730107,1780342244000,-150.0,0.00014986,2]
[423730114,1780342244000,-151.0,0.00014993,2]
[423730116,1780342244000,-2601.0,0.00014995,5]
[423730118,1780342244000,-653.71,0.00014995,2]
[423730119,1780342244000,-653.71,0.00014995,2]
[423730120,1780342244000,-500.0,0.00014995,2]
[423730123,1780342244000,-649.56,0.00014995,2]
[423730121,1780342244000,-500.0,0.00014995,2]
[423730125,1780342244000,-649.56,0.00014995,2]
[423730115,1780342244000,-151.0,0.00014993,2]
[423730122,1780342244000,-500.0,0.00014995,2]
[423730124,1780342244000,-649.56,0.00014995,2]
[423730128,1780342244000,-500.0,0.00014995,2]
[423730129,1780342244000,-500.0,0.00014995,2]
[423730130,1780342244000,-500.0,0.00014995,2]
[423730133,1780342244000,-500.0,0.00014995,2]
[423730136,1780342244000,-500.0,0.00014995,2]
[423730134,1780342244000,-1146.38298594,0.00014995,5]
[423730137,1780342244000,-500.0,0.00014995,2]
[423730132,1780342244000,-500.0,0.00014995,2]
[423730083,1780342244000,-998.0,0.000149,5]
[423730135,1780342244000,-500.0,0.00014995,2]
[423730127,1780342244000,-892.21,0.00014995,2]
[423730117,1780342244000,-515.06616302,0.00014995,2]
[423730126,1780342244000,-892.21,0.00014995,2]
[423730111,1780342244000,-500.0,0.00014991,2]
[423730092,1780342244000,-1130.40691877,0.00014922,2]
[423730112,1780342244000,-15000.0,0.00014992,2]